bitfinex-derivatives/quotes_ETHF0:USTF0_20250621
["timestamp","ask_amount","ask_price","bid_price","bid_amount"]
[1750543217792,5.969,2280.9,2280.0,3.27627599]
[1750543217793,3.2078,2280.8,2280.0,3.2078]
[1750543218093,5.969,2280.7,2280.0,3.2078]
[1750543218491,5.969,2280.7,2280.1,6.018]
[1750543219193,5.969,2280.7,2280.0,3.2078]
[1750543219397,5.969,2280.7,2280.2,3.2078]
[1750543220399,5.969,2280.7,2280.1,5.9744]
[1750543220601,5.969,2280.7,2279.6,19.3803]
[1750543220788,5.969,2280.7,2280.2,3.2078]
[1750543220988,5.969,2280.7,2279.8,3.2078]
[1750543221295,3.2078,2281.6,2280.6,3.2078]
[1750543221499,5.969,2281.5,2281.4,3.2078]
[1750543221798,33.62221396,2281.9,2280.9,3.2078]
[1750543222004,33.62221396,2281.9,2280.6,3.2078]
[1750543222005,5.7535,2281.8,2280.6,3.2078]
[1750543222293,5.7535,2281.8,2279.3,18.51141396]
[1750543222294,18.51141396,2280.9,2279.6,3.2078]
[1750543222498,18.51141396,2280.4,2279.4,7.2633]
[1750543222697,8.9613,2280.3,2279.4,3.2078]
[1750543222897,8.9613,2280.3,2279.0,10.4403]
[1750543222898,8.9613,2280.3,2280.1,0.06847599]
[1750543223097,5.7535,2280.3,2280.1,0.06847599]
[1750543223598,10.7535,2280.3,2280.1,0.06847599]
[1750543224096,10.7535,2280.3,2279.2,3.2078]
[1750543224302,3.2078,2280.2,2279.5,3.2078]
[1750543224601,5.7535,2280.1,2279.5,3.2078]
[1750543224806,20.631,2280.8,2279.8,3.2078]
[1750543225100,3.2078,2281.0,2280.6,3.2078]
[1750543225301,6.0463,2281.1,2280.6,3.2078]
[1750543225597,6.0463,2281.1,2280.7,3.2078]
[1750543225800,3.2078,2281.4,2280.7,3.2078]
[1750543226103,3.2078,2281.4,2280.6,3.2078]
[1750543226402,6.0463,2281.3,2280.6,3.2078]
[1750543226602,6.0463,2281.3,2280.7,5.7308]
[1750543227095,3.2078,2281.4,2280.7,5.7308]
[1750543227401,11.904,2281.9,2281.3,3.2078]
[1750543227696,11.904,2281.9,2281.2,3.2078]
[1750543228002,5.6227,2281.8,2281.2,3.2078]
[1750543228203,5.6227,2281.8,2281.5,3.2078]
[1750543228499,11.904,2281.9,2280.8,4.3609]
[1750543228500,11.904,2281.9,2281.1,3.2078]
[1750543228698,5.6227,2281.7,2281.1,3.2078]
[1750543229199,11.904,2281.9,2281.4,3.2078]
[1750543229407,11.904,2281.9,2281.5,3.2078]
[1750543229903,3.2078,2282.1,2281.5,3.2078]
[1750543230093,3.2078,2282.8,2282.0,3.2078]
[1750543230292,3.2078,2283.2,2282.7,3.2078]
[1750543230905,3.2078,2283.2,2282.8,5.7677]
[1750543231500,3.2078,2283.9,2283.1,3.2078]
[1750543231699,8.9186,2283.9,2283.4,3.2078]
[1750543232306,3.2078,2283.9,2283.4,3.2078]
[1750543232493,3.2078,2284.2,2283.4,3.2078]
[1750543232698,3.2078,2284.5,2284.0,3.2078]
[1750543232904,15.1098,2285.2,2284.1,9.2066]
[1750543233203,3.2078,2285.2,2284.7,3.2078]
[1750543233405,3.2078,2286.0,2285.1,3.2078]
[1750543233713,3.2078,2286.0,2285.2,5.9988]
[1750543233714,5.7108,2285.9,2285.2,5.9988]
[1750543233904,5.7108,2285.9,2285.6,3.2078]
[1750543234097,18.51141396,2286.4,2285.3,3.2078]
[1750543234098,3.2078,2286.4,2285.3,3.2078]
[1750543234300,6.1173,2286.4,2285.7,3.2078]
[1750543234497,3.2078,2286.7,2286.0,3.2078]
[1750543234696,6.1173,2287.1,2286.1,9.3368]
[1750543235003,18.51141396,2286.4,2285.7,3.2078]
[1750543235201,3.2078,2286.1,2285.3,4.1814]
[1750543235501,11.898,2286.3,2285.4,3.2078]
[1750543235710,6.1173,2286.6,2285.7,3.2078]
[1750543235908,6.1173,2286.6,2285.8,6.129]
[1750543236206,3.2078,2286.4,2285.3,4.1814]
[1750543236405,6.1173,2286.3,2285.5,6.129]
[1750543236605,21.71921396,2286.8,2285.7,3.2078]
[1750543236804,21.71921396,2285.8,2284.0,3.2078]
[1750543237005,18.51141396,2285.1,2284.3,3.2078]
[1750543237209,3.2078,2285.3,2284.6,3.2078]
[1750543237501,21.71921396,2286.3,2285.2,3.2078]
[1750543237702,3.2078,2286.0,2284.8,3.2078]
[1750543237907,3.2078,2285.7,2285.1,3.2078]
[1750543238109,3.2078,2285.7,2284.8,5.5794]
[1750543238304,5.6452,2285.6,2285.1,3.2078]
[1750543238713,5.6452,2285.6,2284.8,8.7872]
[1750543238904,3.2078,2285.4,2284.8,5.5794]
[1750543239105,5.6452,2285.3,2284.4,3.2078]
[1750543239306,5.6452,2285.3,2284.5,17.4674]
[1750543240009,3.2078,2285.0,2284.3,4.0854]
[1750543240210,5.8469,2284.9,2283.8,5.8534]
[1750543240409,3.2078,2284.4,2283.4,7.5268]
[1750543240707,3.2078,2284.7,2283.7,3.2078]
[1750543240910,5.8469,2284.8,2284.0,3.2078]
[1750543241100,3.2078,2285.3,2284.3,3.2078]
[1750543241309,3.2078,2285.7,2284.6,3.2078]
[1750543241611,3.2078,2285.7,2284.7,5.8534]
[1750543241814,5.8469,2285.5,2284.7,5.8534]
[1750543242309,3.2078,2285.3,2284.5,4.4146]
[1750543242509,3.2078,2284.6,2283.6,26.3586]
[1750543242807,5.8469,2285.2,2283.6,26.3586]
[1750543242808,5.8469,2285.2,2284.2,3.2078]
[1750543243111,3.2078,2285.4,2284.6,3.2078]
[1750543243411,3.2078,2285.4,2284.7,17.4685]
[1750543244104,3.2078,2285.4,2284.7,5.5825]
[1750543244303,3.2078,2285.1,2284.0,3.2078]
[1750543244510,3.2078,2284.8,2284.0,3.2078]
[1750543244705,5.9177,2284.7,2284.1,5.5825]
[1750543245514,3.2078,2284.8,2284.1,5.5825]
[1750543245810,3.2078,2284.9,2284.1,5.5825]
[1750543246012,3.2078,2284.6,2284.1,5.5825]
[1750543246311,3.2078,2284.6,2283.9,11.885]
[1750543246511,3.2078,2284.6,2282.8,3.2078]
[1750543246512,3.2078,2284.0,2282.8,3.2078]
[1750543246715,3.2078,2283.7,2282.8,3.2078]
[1750543246914,6.0014,2283.6,2282.8,3.2078]
[1750543247213,3.2078,2284.3,2283.5,3.2078]
[1750543247414,3.2078,2284.3,2283.6,5.6296]
[1750543247712,3.2078,2283.9,2283.2,15.0928]
[1750543247916,3.2078,2284.7,2283.8,3.2078]
[1750543248210,3.2078,2284.7,2283.4,20.1413]
[1750543248420,3.2078,2284.4,2283.4,8.2553]
[1750543248610,24.51281396,2284.3,2283.1,3.2078]
[1750543248918,3.2078,2284.1,2283.1,3.2078]
[1750543249102,5.7973,2284.0,2283.1,9.3438]
[1750543249708,5.7973,2284.0,2283.1,6.136]
[1750543249917,5.7973,2284.0,2283.1,9.3438]
[1750543250210,5.7973,2284.0,2283.0,11.886]
[1750543250413,3.2078,2283.8,2282.8,3.2078]
[1750543250716,3.2078,2283.5,2282.8,3.2078]
[1750543250913,5.7973,2283.4,2282.8,3.2078]
[1750543251103,5.7973,2283.4,2282.6,8.2553]
[1750543251503,5.7973,2283.4,2282.4,11.756]
[1750543251920,5.7973,2283.4,2282.2,11.756]
[1750543252114,17.5533,2283.4,2282.4,3.2078]
[1750543252523,3.2078,2282.8,2282.1,3.2078]
[1750543252823,5.6386,2282.7,2282.1,3.2078]
[1750543253011,5.6386,2282.7,2281.7,46.23]
[1750543253215,5.6386,2282.7,2281.7,49.4378]
[1750543253515,18.51141396,2282.3,2281.4,3.2078]
[1750543253711,3.2078,2281.6,2280.8,3.2078]
[1750543253919,5.6386,2281.5,2280.8,3.2078]
[1750543255608,3.2078,2281.3,2280.8,3.2078]
[1750543255813,6.0897,2281.2,2280.4,3.2078]
[1750543257016,3.2078,2281.0,2280.4,3.2078]
[1750543257220,4.0364,2282.1,2280.8,3.2078]
[1750543257424,4.0364,2282.1,2280.5,17.4159]
[1750543257425,6.0897,2282.0,2281.5,3.2078]
[1750543258120,3.2078,2282.8,2281.8,3.2078]
[1750543258318,0.08761554,2282.7,2282.6,3.2078]
[1750543258621,5.6339,2283.5,2282.6,3.2078]
[1750543258822,3.2078,2283.7,2283.0,3.2078]
[1750543259012,3.2078,2283.7,2283.1,6.0329]
[1750543259417,5.6339,2284.0,2283.4,3.2078]
[1750543259418,8.8417,2284.0,2283.4,3.2078]
[1750543259619,14.9708,2284.3,2283.4,3.2078]
[1750543259819,5.6339,2284.2,2283.5,6.0329]
[1750543260417,11.762,2284.1,2282.9,46.257]
[1750543260621,5.6339,2284.0,2283.1,3.2078]
[1750543260811,3.2078,2284.6,2283.6,3.2078]
[1750543261016,3.2078,2284.6,2282.9,46.257]
[1750543261017,5.6339,2284.6,2284.0,3.2078]
[1750543261212,3.2078,2284.9,2284.0,3.2078]
[1750543261417,3.2078,2284.9,2284.1,6.0639]
[1750543261622,5.6357,2285.3,2284.7,3.2078]
[1750543261826,5.6357,2285.3,2284.6,3.2078]
[1750543262228,5.6357,2285.3,2284.5,6.0639]
[1750543262524,5.6357,2285.3,2284.6,3.2078]
[1750543262726,4.0112,2286.1,2285.2,3.2078]
[1750543262929,14.9668,2286.7,2285.3,3.2078]
[1750543263119,5.6357,2286.5,2285.4,17.8229]
[1750543263320,5.6357,2286.5,2285.6,3.2078]
[1750543263922,5.6357,2286.5,2285.1,7.6343]
[1750543263923,3.2078,2286.4,2285.1,7.6343]
[1750543264125,6.095,2286.3,2285.7,3.2078]
[1750543264327,6.095,2286.3,2285.8,5.7884]
[1750543264526,6.095,2286.3,2285.5,11.759]
[1750543265321,3.2078,2286.0,2285.3,3.2078]
[1750543265520,6.095,2285.9,2285.0,3.2078]
[1750543265721,3.2078,2285.7,2285.0,3.2078]
[1750543265928,3.2078,2286.0,2285.4,3.2078]
[1750543266127,0.08749289,2285.9,2285.7,3.2078]
[1750543266533,0.08749289,2285.9,2285.5,5.7884]
[1750543266827,0.08749289,2285.9,2285.1,46.224]
[1750543266828,0.08749289,2285.9,2285.1,50.3772]
[1750543267028,6.095,2285.8,2285.1,50.3772]
[1750543268324,0.08749289,2285.9,2285.1,50.3772]
[1750543268325,0.08749289,2285.9,2285.6,3.2078]
[1750543268529,0.08749289,2285.9,2285.7,17.4621]
[1750543268724,3.2078,2286.6,2285.8,5.7071]
[1750543268922,5.559,2286.7,2286.0,3.2078]
[1750543269123,11.2334,2287.3,2286.0,3.2078]
[1750543269429,3.2078,2287.0,2285.8,5.7071]
[1750543269622,5.559,2286.9,2286.0,3.2078]
[1750543269818,5.559,2286.9,2286.3,3.2078]
[1750543270029,3.2078,2287.4,2286.4,17.4601]
[1750543270528,5.6003,2287.3,2286.4,17.4601]
[1750543271325,3.2078,2287.0,2286.3,4.3306]
[1750543271525,5.6003,2286.9,2286.3,4.3306]
[1750543271932,3.2078,2287.3,2286.4,5.587]
[1750543272235,5.6003,2287.2,2286.4,5.587]
[1750543272435,3.2078,2287.3,2286.4,5.587]
[1750543273024,3.2078,2286.9,2286.3,7.5384]
[1750543273229,3.2078,2286.9,2286.2,11.749]
[1750543273530,5.6003,2287.2,2286.6,3.2078]
[1750543273730,5.6003,2287.2,2286.2,11.749]
[1750543273731,5.6003,2287.2,2286.7,5.7235]
[1750543274235,3.2078,2287.3,2286.7,5.7235]
[1750543275727,5.6958,2287.2,2286.7,5.7235]
[1750543277527,3.2078,2287.3,2286.7,5.7235]
[1750543278134,3.2078,2287.0,2286.1,46.201]
[1750543278532,3.2078,2287.3,2286.1,49.4088]
[1750543278729,3.2078,2287.3,2286.4,3.2078]
[1750543278925,6.0441,2287.2,2286.1,53.8252]
[1750543279134,6.0441,2287.2,2286.2,5.9166]
[1750543279442,3.2078,2287.6,2286.4,3.2078]
[1750543279634,5.9956,2287.2,2286.5,5.6793]
[1750543279834,3.2078,2286.9,2286.1,4.4164]
[1750543280039,5.9956,2286.8,2286.1,4.4164]
[1750543280238,5.9956,2286.8,2286.1,10.0957]
[1750543280539,3.2078,2286.5,2285.7,11.621]
[1750543280733,5.9956,2286.4,2285.7,14.8288]
[1750543280933,3.2078,2286.8,2286.0,3.2078]
[1750543281134,3.2078,2286.8,2285.8,5.6793]
[1750543281444,5.9956,2286.7,2285.8,5.6793]
[1750543281635,5.9956,2286.7,2286.0,3.2078]
[1750543282333,5.9956,2286.7,2286.1,3.2078]
[1750543282538,4.4234,2287.1,2286.2,5.9551]
[1750543282727,5.8236,2287.0,2286.4,3.2078]
[1750543282931,3.2078,2287.5,2286.4,3.2078]
[1750543283138,5.8236,2287.4,2286.5,5.9551]
[1750543283841,5.8236,2287.4,2286.7,3.2078]
[1750543284135,3.2078,2287.5,2287.0,3.2078]
[1750543284341,5.8236,2288.4,2287.2,3.2078]
[1750543284538,5.8236,2288.4,2287.3,11.62]
[1750543284735,5.8236,2288.4,2287.4,5.9551]
[1750543285244,5.8236,2288.4,2287.5,11.62]
[1750543285832,5.8236,2288.4,2287.6,3.2078]
[1750543286034,3.2078,2288.6,2287.5,11.62]
[1750543286035,3.2078,2288.6,2287.8,3.2078]
[1750543286341,3.2078,2289.7,2288.5,3.2078]
[1750543286635,27.30411396,2289.7,2288.8,3.2078]
[1750543286841,0.87333,2289.6,2288.5,11.62]
[1750543287043,5.5849,2289.5,2288.5,14.8278]
[1750543287439,5.5849,2289.5,2288.8,3.2078]
[1750543287645,5.5849,2289.5,2288.9,5.7324]
[1750543287846,5.5849,2289.5,2289.0,11.617]
[1750543288037,6.45828,2289.5,2288.5,14.8248]
[1750543288238,3.2078,2289.3,2288.5,14.8248]
[1750543288433,5.5849,2289.2,2288.5,14.8248]
[1750543288638,5.5849,2289.2,2288.5,20.565]
[1750543289145,5.5849,2289.2,2288.5,8.948]
[1750543289335,3.2078,2289.9,2288.9,3.2078]
[1750543289647,6.0855,2290.0,2288.9,3.2078]
[1750543289940,6.0855,2290.0,2289.2,3.2078]
[1750543290138,3.2078,2290.2,2289.2,3.2078]
[1750543290441,3.2078,2290.8,2290.0,3.2078]
[1750543290644,3.2078,2290.8,2290.1,5.7402]
[1750543290948,3.2078,2290.8,2290.3,3.2078]
[1750543291345,3.2078,2291.4,2290.3,3.2078]
[1750543291548,3.2078,2292.3,2290.8,3.2078]
[1750543291847,0.08728669,2291.3,2290.9,4.2059]
[1750543292046,3.2078,2291.2,2290.7,3.2078]
[1750543292346,3.2078,2290.8,2290.3,3.2078]
[1750543292647,5.672,2290.7,2290.3,3.2078]
[1750543293045,3.2078,2290.8,2290.3,3.2078]
[1750543293240,30.20770065,2291.3,2290.3,3.2078]
[1750543293241,5.672,2291.2,2290.6,3.2078]
[1750543293539,0.08728669,2291.3,2290.8,3.2078]
[1750543293755,3.2078,2291.2,2290.4,5.9377]
[1750543293941,8.8798,2291.2,2290.4,5.9377]
[1750543294243,0.08728669,2291.3,2290.8,3.2078]
[1750543294445,61.7759,2292.6,2290.4,10.9377]
[1750543294446,3.2078,2292.4,2291.1,3.2078]
[1750543294643,3.2078,2292.4,2290.6,34.035]
[1750543294644,3.2078,2292.4,2291.5,3.2078]
[1750543294846,6.0847,2292.3,2291.6,5.7049]
[1750543295038,6.0847,2292.3,2291.0,4.3851]
[1750543295039,3.2078,2292.1,2291.1,11.609]
[1750543295237,3.2078,2292.1,2291.2,3.2078]
[1750543295439,3.2078,2292.7,2291.5,3.2078]
[1750543295650,3.2078,2292.7,2291.8,3.2078]
[1750543295943,24.59611396,2292.6,2291.1,7.3124]
[1750543296145,3.2078,2292.0,2290.9,3.2078]
[1750543296351,3.2078,2292.6,2291.5,3.2078]
[1750543296551,6.0847,2292.5,2291.8,3.2078]
[1750543296950,6.0847,2292.5,2291.6,5.7049]
[1750543297151,3.2078,2291.9,2290.8,3.2078]
[1750543297338,6.0847,2291.8,2290.8,3.2078]
[1750543297545,6.0847,2291.8,2291.2,3.2078]
[1750543297748,6.0847,2291.8,2291.3,5.705]
[1750543298052,3.2078,2292.2,2291.3,17.309]
[1750543298253,3.2078,2292.2,2291.5,3.2078]
[1750543298548,22.59179396,2291.6,2290.1,3.2078]
[1750543298756,3.2078,2290.5,2289.2,14.8118]
[1750543299049,3.2078,2290.5,2289.1,4.4244]
[1750543299050,3.2078,2290.8,2290.1,3.2078]
[1750543299347,6.0462,2291.0,2290.5,3.2078]
[1750543299549,6.0462,2291.0,2290.5,11.601]
[1750543299750,6.0462,2291.0,2289.8,46.102]
[1750543299751,0.06847599,2291.2,2290.7,3.2078]
[1750543299951,0.06847599,2291.2,2290.8,17.306]
[1750543300252,0.06847599,2291.2,2290.4,11.601]
[1750543300555,9.254,2291.1,2290.4,11.601]
[1750543301056,0.06847599,2291.2,2290.8,3.2078]
[1750543301259,0.06847599,2291.2,2290.9,17.3104]
[1750543301452,0.06847599,2291.2,2290.5,8.1609]
[1750543301644,3.2078,2291.1,2290.6,11.599]
[1750543301953,5.7101,2291.0,2290.6,11.599]
[1750543302544,5.7101,2291.0,2290.5,4.1288]
[1750543302946,5.7101,2291.0,2290.6,11.599]
[1750543303142,3.2078,2291.1,2290.6,17.3084]
[1750543303450,3.2078,2291.1,2290.7,11.599]
[1750543303647,3.2078,2290.8,2289.5,3.2078]
[1750543303958,3.2078,2290.6,2290.3,3.2078]
[1750543304152,3.2078,2290.6,2290.0,3.2078]
[1750543304353,3.2078,2290.6,2290.1,6.0922]
[1750543304553,3.2078,2291.0,2290.1,6.0922]
[1750543304748,5.8826,2290.9,2290.1,6.0922]
[1750543305158,5.8826,2290.9,2290.2,11.599]
[1750543305454,3.2078,2291.0,2290.3,3.2078]
[1750543305655,0.06847599,2291.2,2290.6,3.2078]
[1750543305852,0.06847599,2291.2,2290.9,3.2078]
[1750543306055,5.8826,2292.1,2291.0,6.0922]
[1750543306254,3.2078,2292.3,2291.2,3.2078]
[1750543306461,3.2078,2292.3,2291.3,63.7862]
[1750543307661,3.2078,2292.3,2291.6,3.2078]
[1750543307863,3.2078,2292.0,2291.3,46.095]
[1750543308063,3.2078,2292.0,2291.4,11.597]
[1750543308271,3.2078,2292.4,2291.5,3.2078]
[1750543308567,3.2078,2292.8,2291.8,3.2078]
[1750543308776,3.2078,2292.8,2291.9,6.0236]
[1750543309069,3.2078,2292.8,2291.3,46.095]
[1750543309070,3.2078,2292.1,2291.3,11.597]
[1750543309271,3.2078,2292.6,2291.4,3.2078]
[1750543309563,3.2078,2292.6,2291.7,3.2078]
[1750543309769,3.2078,2292.6,2291.8,6.0236]
[1750543310166,3.2078,2292.3,2291.9,11.597]
[1750543310863,0.87216,2292.7,2291.9,11.597]
[1750543310864,3.27627599,2292.8,2292.0,5.7982]
[1750543311066,3.2078,2292.1,2291.5,8.1388]
[1750543311257,3.2078,2292.4,2291.6,11.497]
[1750543311458,5.899,2292.3,2291.7,5.7982]
[1750543312768,3.2078,2292.4,2291.7,5.7982]
[1750543312966,8.8177,2292.7,2291.8,3.2078]
[1750543313363,8.8177,2292.7,2291.7,5.7982]
[1750543313364,3.2078,2292.4,2291.7,5.7982]
[1750543313668,5.6099,2292.3,2291.7,11.497]
[1750543314165,3.2078,2292.4,2291.7,11.497]
[1750543314765,5.6099,2292.3,2291.7,11.497]
[1750543315168,5.6099,2292.3,2291.8,3.2078]
[1750543315366,3.2078,2292.7,2291.8,3.2078]
[1750543315671,3.2078,2292.4,2291.9,5.8538]
[1750543315866,3.2078,2292.4,2291.8,3.2078]
[1750543316075,5.6084,2292.3,2291.9,11.495]
[1750543316568,5.6084,2292.3,2291.8,3.2078]
[1750543316760,5.6084,2292.3,2291.5,8.1388]
[1750543316761,3.2078,2291.9,2291.4,11.494]
[1750543316968,5.6084,2291.8,2291.4,11.494]
[1750543317164,3.2078,2291.7,2291.4,11.494]
[1750543317364,5.6084,2291.8,2291.4,11.494]
[1750543317666,3.2078,2291.7,2291.4,11.494]
[1750543317867,3.2078,2292.0,2291.4,11.494]
[1750543318068,3.2078,2292.3,2291.5,5.585]
[1750543318269,5.6084,2292.2,2291.5,5.585]
[1750543318673,11.3566,2292.7,2291.7,3.2078]
[1750543318868,3.2078,2292.3,2291.8,5.585]
[1750543319069,5.6084,2292.6,2292.2,3.2078]
[1750543319368,3.2078,2292.3,2291.6,11.494]
[1750543319570,5.6305,2292.2,2291.6,11.494]
[1750543320068,5.6305,2292.2,2291.7,11.493]
[1750543320568,5.6305,2292.2,2291.8,6.0263]
[1750543320871,5.6305,2292.2,2291.7,11.493]
[1750543322976,5.6305,2292.2,2291.8,5.7564]
[1750543323677,3.2078,2292.3,2291.8,5.7564]
[1750543323873,0.06847599,2292.8,2292.1,3.2078]
[1750543324071,3.2078,2292.7,2292.1,11.493]
[1750543324377,3.2078,2292.4,2291.6,11.493]
[1750543324569,5.5952,2292.3,2291.6,11.493]
[1750543324775,5.5952,2292.3,2291.7,5.7564]
[1750543326872,3.2078,2292.4,2291.9,3.2078]
[1750543327070,6.0367,2292.7,2292.0,5.5403]
[1750543327272,6.0367,2292.7,2292.2,3.2078]
[1750543327677,6.0367,2292.7,2292.1,11.493]
[1750543327678,6.0367,2292.7,2292.3,5.5403]
[1750543327874,6.90887,2292.7,2291.9,3.2078]
[1750543328083,3.2078,2292.3,2291.6,11.493]
[1750543328382,5.7659,2292.2,2291.6,11.493]
[1750543329284,3.2078,2292.6,2291.7,5.5241]
[1750543329575,5.7659,2292.5,2291.7,5.5241]
[1750543330477,3.2078,2292.6,2291.7,5.5241]
[1750543330680,0.06847599,2292.8,2292.3,3.2078]
[1750543330883,0.06847599,2292.8,2292.4,50.8621]
[1750543331677,0.06847599,2292.8,2292.3,3.2078]
[1750543331885,3.2078,2292.4,2292.0,0.43427827]
[1750543332075,3.2078,2292.1,2292.0,0.43427827]
[1750543332575,5.5059,2292.3,2291.4,3.2078]
[1750543332780,3.2078,2292.6,2291.7,3.2078]
[1750543333083,3.2078,2292.6,2291.8,51.3968]
[1750543333285,5.5059,2292.7,2291.8,51.3968]
[1750543334183,5.5059,2292.7,2291.9,45.316]
[1750543334483,0.06847599,2292.8,2292.0,48.5238]
[1750543334686,0.06847599,2292.8,2292.3,3.2078]
[1750543335391,0.06847599,2292.8,2292.4,45.311]
[1750543335591,3.2078,2292.6,2291.8,3.2078]
[1750543335891,3.2078,2292.6,2291.8,14.6988]
[1750543336085,5.802,2292.5,2291.8,14.6988]
[1750543336679,0.06847599,2292.8,2292.4,3.2078]
[1750543336886,0.06847599,2292.8,2292.3,11.491]
[1750543337082,5.802,2292.7,2292.1,3.2078]
[1750543337292,3.2078,2292.6,2292.1,11.491]
[1750543337592,3.2078,2292.6,2291.3,21.51621811]
[1750543337593,3.2078,2292.3,2291.3,8.3123]
[1750543337884,3.2078,2292.0,2291.3,8.3123]
[1750543338092,3.2078,2292.0,2291.4,6.0736]
[1750543338285,0.06847599,2292.8,2291.8,3.2078]
[1750543338491,0.06847599,2292.8,2292.3,3.2078]
[1750543338686,0.06847599,2292.8,2292.4,17.5636]
[1750543338887,5.69587599,2292.8,2291.9,3.2078]
[1750543339196,5.69587599,2292.8,2292.3,45.29]
[1750543339594,3.2078,2292.6,2291.4,11.49]
[1750543339798,3.2078,2292.6,2291.7,3.2078]
[1750543340001,3.2078,2292.3,2291.6,11.49]
[1750543340487,3.2078,2292.3,2291.7,5.6436]
[1750543340902,3.2078,2292.3,2291.5,45.196]
[1750543341191,3.2078,2292.3,2291.6,5.6436]
[1750543341397,5.528,2292.2,2291.6,5.6436]
[1750543342098,5.528,2292.2,2291.3,11.5201]
[1750543342099,3.2078,2292.0,2291.3,8.3123]
[1750543342298,5.528,2291.9,2291.3,19.7153]
[1750543342491,5.528,2291.9,2291.4,5.6436]
[1750543342996,5.528,2291.9,2291.3,8.3123]
[1750543343195,5.528,2291.9,2291.4,11.403]
[1750543343400,5.528,2291.9,2291.3,13.9559]
[1750543343590,5.528,2291.9,2291.3,59.1379]
[1750543343797,3.2078,2292.0,2291.3,59.1379]
[1750543344794,5.6232,2292.4,2291.8,3.2078]
[1750543345005,3.2078,2292.3,2291.4,3.2078]
[1750543345197,5.6232,2292.2,2291.5,45.177]
[1750543345800,5.6232,2292.2,2291.4,3.2078]
[1750543345996,3.2078,2291.8,2291.1,3.2078]
[1750543346194,3.2078,2292.1,2291.4,3.2078]
[1750543346396,3.2078,2292.1,2291.5,5.6081]
[1750543346899,6.0696,2292.0,2291.4,11.404]
[1750543347797,3.2078,2291.5,2290.2,14.6128]
[1750543348001,3.2078,2291.1,2290.4,6.0609]
[1750543348499,3.2078,2290.8,2290.2,3.2078]
[1750543348705,3.2078,2290.8,2290.2,48.3668]
[1750543349001,3.2078,2290.8,2290.1,4.3814]
[1750543349299,6.0696,2290.7,2290.0,45.157]
[1750543349694,6.0696,2290.7,2290.0,11.405]
[1750543349894,3.2078,2290.5,2289.8,3.2078]
[1750543350099,3.2078,2290.2,2289.8,3.2078]
[1750543350297,3.2078,2289.9,2289.5,11.407]
[1750543350499,3.2078,2289.9,2289.4,4.3814]
[1750543350695,3.2078,2289.9,2289.1,9.7224]
[1750543350897,5.6299,2289.8,2289.1,21.1294]
[1750543351095,5.6299,2289.8,2289.2,3.2078]
[1750543351297,5.6299,2289.8,2289.1,21.1294]
[1750543351499,5.6299,2289.8,2288.9,3.2078]
[1750543351700,3.2078,2289.6,2289.0,11.407]
[1750543351896,3.2078,2289.3,2288.6,46.071]
[1750543352199,3.2078,2289.6,2289.0,3.2078]
[1750543352409,3.2078,2289.6,2288.6,46.071]
[1750543352410,5.6299,2290.1,2289.3,3.2078]
[1750543352703,3.2078,2290.2,2289.4,50.7459]
[1750543352901,5.6237,2290.0,2289.2,3.2078]
[1750543353093,3.2078,2289.9,2288.8,9.2348]
[1750543353394,5.6237,2289.8,2289.1,3.2078]
[1750543353592,5.6237,2289.8,2288.8,3.2078]
[1750543353904,3.2078,2289.5,2288.9,3.2078]
[1750543354207,4.08096,2290.1,2288.9,6.027]
[1750543354503,5.6237,2289.7,2289.2,3.2078]
[1750543354692,5.10919,2290.3,2289.6,3.2078]
[1750543354693,3.2078,2290.2,2289.6,3.2078]
[1750543355096,5.6237,2290.3,2289.7,6.027]
[1750543355395,3.2078,2290.4,2289.7,6.027]
[1750543355594,5.6237,2290.7,2289.8,3.2078]
[1750543355790,3.2078,2291.0,2290.1,3.2078]
[1750543355989,6.0827,2291.0,2290.3,3.2078]
[1750543356200,9.2905,2291.0,2290.2,5.7659]
[1750543356403,9.2905,2291.0,2290.4,3.2078]
[1750543356404,6.0827,2291.0,2290.4,3.2078]
[1750543356604,6.0827,2291.0,2290.5,5.7659]
[1750543356904,3.2078,2290.9,2290.1,3.2078]
[1750543357098,6.0827,2290.8,2290.1,3.2078]
[1750543357305,6.0827,2291.1,2290.2,8.9737]
[1750543357998,4.3468,2291.4,2290.5,3.2078]
[1750543358196,7.5546,2291.4,2290.6,17.1779]
[1750543358396,3.2078,2291.2,2290.6,17.1779]
[1750543358601,3.2078,2291.2,2290.6,5.7659]
[1750543358800,3.2078,2290.9,2290.2,3.2078]
[1750543359000,3.2078,2291.2,2290.5,3.2078]
[1750543359199,3.2078,2291.2,2290.6,11.412]
[1750543359396,3.2078,2291.2,2290.6,17.2981]
[1750543359597,3.2078,2291.2,2290.2,3.2078]
[1750543359598,5.6355,2291.1,2290.2,3.2078]
[1750543359800,5.6355,2291.1,2290.3,17.2981]
[1750543360098,5.6355,2291.1,2290.3,5.8861]
[1750543360299,5.6355,2291.1,2290.2,3.2078]
[1750543360501,3.2078,2290.8,2290.0,11.412]
[1750543360703,3.2078,2291.1,2290.2,3.2078]
[1750543360893,3.2078,2290.8,2290.1,5.8861]
[1750543361095,5.6355,2290.7,2290.1,5.8861]
[1750543361695,3.2078,2291.2,2290.2,3.2078]